Workbook

Sheet Tableau Bord
B26: Statut | C26: Montant TTC | E26: =CHOOSE(1,Preparation!F1:G11) -> Nom client | F26: Montant TTC
B27: A Régler | C27: 2369.4 | E27: Bernard et Cie | F27: 1153.6
B28: Payée | C28: 2727.6 | E28: Dubois Informatique | F28: 638.8
B29: Total général | C29: 5097 | E29: Dupont SARL | F29: 571.2
E30: Martin & Fils | F30: 538
E31: Petit Distribution | F31: 431.4
E32: Morin Transport | F32: 400
E33: Lefèvre Industries | F33: 381
E34: Rousseau Constructions | F34: 368
E35: Société Giraud | F35: 330
E36: Pelletier et Associés | F36: 305.4

Sheet FACTURE
E4: Facture n° | G4: =Param!E2 -> F2024003
G5: Date : | H5: 2024-12-21
L7: 0
C8: Client ID | D8: C007 | E8: A : | F8: =" "&VLOOKUP($D$8,Clients!$A:$B,2,FALSE) -> Dubois Informatique | L8: 0.055
C9: Ma PME SA | E9: Adresse : | F9: =VLOOKUP($D$8,Clients!$A:$E,5,FALSE) -> 9 Rue de la Technologie | L9: 0.1
C10: 18 Allées de mon adresse | F10: =VLOOKUP($D$8,Clients!$A:$F,6,FALSE) -> 37000 | G10: =VLOOKUP($D$8,Clients!$A:$G,7,FALSE) -> Tours | L10: 0.2
C11: 31000 | D11: TOULOUSE | F11: Téléphone : | G11: =VLOOKUP($D$8,Clients!$A:$G,3,FALSE) -> 0
C12: Téléphone : | D12: 06 81 xx xx xx | E12: Adresse de livraison :
C13: Siret : | D13: 34114 XXXXXXXX
C14: N° TVA intracommunautaire : | D14: TVA XXXXXX
C18: Référence | D18: Description | E18: PU HT € | F18: Quantité | G18: Montant HT | H18: Taux TVA | K18: taux tva | L18: montant tva
A20: 5 | C20: TOU003 | D20: =IFERROR(VLOOKUP(C20,Catalogue!A:B,2,FALSE),"") -> Magnet réfrigérateur "Vieux Toulouse" | E20: =IFERROR(VLOOKUP(C20,Catalogue!A:C,3,FALSE),"") -> 5 | F20: 1 | G20: =IF(ISERROR(E20*F20),"",E20*F20) -> 5 | H20: 0.2 | K20: =H20 -> 0.2 | L20: =IF(ISERROR(G20*H20),0,G20*H20) -> 1
C21: TOU004 | D21: =IFERROR(VLOOKUP(C21,Catalogue!A:B,2,FALSE),"") -> Porte-clés "Basilique Saint-Sernin" | E21: =IFERROR(VLOOKUP(C21,Catalogue!A:C,3,FALSE),"") -> 6 | F21: 2 | G21: =IF(ISERROR(E21*F21),"",E21*F21) -> 12 | H21: 0.2 | K21: =H21 -> 0.2 | L21: =IF(ISERROR(G21*H21),0,G21*H21) -> 2.4
D22: =IFERROR(VLOOKUP(C22,Catalogue!A:B,2,FALSE),"") ->  | E22: =IFERROR(VLOOKUP(C22,Catalogue!A:C,3,FALSE),"") ->  | K22: 0 | L22: 0
D23: =IFERROR(VLOOKUP(C23,Catalogue!A:B,2,FALSE),"") ->  | E23: =IFERROR(VLOOKUP(C23,Catalogue!A:C,3,FALSE),"") ->  | K23: 0 | L23: 0
D24: =IFERROR(VLOOKUP(C24,Catalogue!A:B,2,FALSE),"") ->  | E24: =IFERROR(VLOOKUP(C24,Catalogue!A:C,3,FALSE),"") ->  | L24: 0
D25: =IFERROR(VLOOKUP(C25,Catalogue!A:B,2,FALSE),"") ->  | E25: =IFERROR(VLOOKUP(C25,Catalogue!A:C,3,FALSE),"") ->  | L25: 0
D26: =IFERROR(VLOOKUP(C26,Catalogue!A:B,2,FALSE),"") ->  | E26: =IFERROR(VLOOKUP(C26,Catalogue!A:C,3,FALSE),"") ->  | L26: 0
D27: =IFERROR(VLOOKUP(C27,Catalogue!A:B,2,FALSE),"") ->  | E27: =IFERROR(VLOOKUP(C27,Catalogue!A:C,3,FALSE),"") ->  | L27: 0
D28: =IFERROR(VLOOKUP(C28,Catalogue!A:B,2,FALSE),"") ->  | E28: =IFERROR(VLOOKUP(C28,Catalogue!A:C,3,FALSE),"") ->  | L28: 0
D29: =IFERROR(VLOOKUP(C29,Catalogue!A:B,2,FALSE),"") ->  | E29: =IFERROR(VLOOKUP(C29,Catalogue!A:C,3,FALSE),"") ->  | L29: 0
D30: =IFERROR(VLOOKUP(C30,Catalogue!A:B,2,FALSE),"") ->  | E30: =IFERROR(VLOOKUP(C30,Catalogue!A:C,3,FALSE),"") ->  | L30: 0
D31: =IFERROR(VLOOKUP(C31,Catalogue!A:B,2,FALSE),"") ->  | E31: =IFERROR(VLOOKUP(C31,Catalogue!A:C,3,FALSE),"") ->  | L31: 0
D32: =IFERROR(VLOOKUP(C32,Catalogue!A:B,2,FALSE),"") ->  | E32: =IFERROR(VLOOKUP(C32,Catalogue!A:C,3,FALSE),"") ->  | L32: 0
D33: =IFERROR(VLOOKUP(C33,Catalogue!A:B,2,FALSE),"") ->  | E33: =IFERROR(VLOOKUP(C33,Catalogue!A:C,3,FALSE),"") ->  | L33: 0
D34: =IFERROR(VLOOKUP(C34,Catalogue!A:B,2,FALSE),"") ->  | E34: =IFERROR(VLOOKUP(C34,Catalogue!A:C,3,FALSE),"") ->  | L34: 0
D35: =IFERROR(VLOOKUP(C35,Catalogue!A:B,2,FALSE),"") ->  | E35: =IFERROR(VLOOKUP(C35,Catalogue!A:C,3,FALSE),"") ->  | L35: 0
D36: =IFERROR(VLOOKUP(C36,Catalogue!A:B,2,FALSE),"") ->  | E36: =IFERROR(VLOOKUP(C36,Catalogue!A:C,3,FALSE),"") ->  | L36: 0
D37: =IFERROR(VLOOKUP(C37,Catalogue!A:B,2,FALSE),"") ->  | E37: =IFERROR(VLOOKUP(C37,Catalogue!A:C,3,FALSE),"") ->  | L37: 0
D38: =IFERROR(VLOOKUP(C38,Catalogue!A:B,2,FALSE),"") ->  | E38: =IFERROR(VLOOKUP(C38,Catalogue!A:C,3,FALSE),"") ->  | L38: 0
D39: =IFERROR(VLOOKUP(C39,Catalogue!A:B,2,FALSE),"") ->  | E39: =IFERROR(VLOOKUP(C39,Catalogue!A:C,3,FALSE),"") ->  | L39: 0
D40: =IFERROR(VLOOKUP(C40,Catalogue!A:B,2,FALSE),"") ->  | E40: =IFERROR(VLOOKUP(C40,Catalogue!A:C,3,FALSE),"") ->  | L40: 0
D41: =IFERROR(VLOOKUP(C41,Catalogue!A:B,2,FALSE),"") ->  | E41: =IFERROR(VLOOKUP(C41,Catalogue!A:C,3,FALSE),"") ->  | L41: 0
D42: =IFERROR(VLOOKUP(C42,Catalogue!A:B,2,FALSE),"") ->  | E42: =IFERROR(VLOOKUP(C42,Catalogue!A:C,3,FALSE),"") ->  | L42: 0
D43: =IFERROR(VLOOKUP(C43,Catalogue!A:B,2,FALSE),"") ->  | E43: =IFERROR(VLOOKUP(C43,Catalogue!A:C,3,FALSE),"") ->  | L43: 0
D44: =IFERROR(VLOOKUP(C44,Catalogue!A:B,2,FALSE),"") ->  | E44: =IFERROR(VLOOKUP(C44,Catalogue!A:C,3,FALSE),"") ->  | L44: 0
D45: =IFERROR(VLOOKUP(C45,Catalogue!A:B,2,FALSE),"") ->  | E45: =IFERROR(VLOOKUP(C45,Catalogue!A:C,3,FALSE),"") ->  | L45: 0
D46: =IFERROR(VLOOKUP(C46,Catalogue!A:B,2,FALSE),"") ->  | E46: =IFERROR(VLOOKUP(C46,Catalogue!A:C,3,FALSE),"") ->  | L46: 0
D47: =IFERROR(VLOOKUP(C47,Catalogue!A:B,2,FALSE),"") ->  | E47: =IFERROR(VLOOKUP(C47,Catalogue!A:C,3,FALSE),"") ->  | L47: 0
D48: =IFERROR(VLOOKUP(C48,Catalogue!A:B,2,FALSE),"") ->  | E48: =IFERROR(VLOOKUP(C48,Catalogue!A:C,3,FALSE),"") ->  | L48: 0
D49: =IFERROR(VLOOKUP(C49,Catalogue!A:B,2,FALSE),"") ->  | E49: =IFERROR(VLOOKUP(C49,Catalogue!A:C,3,FALSE),"") ->  | L49: 0
D50: =IFERROR(VLOOKUP(C50,Catalogue!A:B,2,FALSE),"") ->  | E50: =IFERROR(VLOOKUP(C50,Catalogue!A:C,3,FALSE),"") ->  | L50: 0
L51: 0
L52: =SUM(L20:L51) -> 3.4
C53: Échéance : | D53: paiement à 30 jours | F53: € HT | G53: =SUM(G20:G51) -> 17
C54: Règlement : | D54: virement
E55: TOTAL € | F55: HT | G55: =G53 -> 17
C56: En cas de retard de paiement, des pénalités de retard seront appliquées | F56: TTC | G56: =G55+L52 -> 20.4
C57: au taux de 10% par an, conformément à l'article L.441-10 du Code de commerce.
F58: TVA à 5,5% : | G58: =SUMIFS((G20:$G$51),$H$20:$H$51,0.055)*0.055 -> 0
F59: TVA à 10% : | G59: =SUMIFS((G20:$G$51),$H$20:$H$51,0.1)*0.1 -> 0
F60: TVA à 20% : | G60: =SUMIFS((G20:$G$51),$H$20:$H$51,0.2)*0.2 -> 3.4
F61: Total TVA : | G61: =SUM(G58:G60) -> 3.4

Sheet Suivi_Factures
A1: ID Fature | B1: ID Client | C1: Date facture | D1: Montant TTC | E1: Statut paiement | F1: Date paiement | G1: Montant paiement | H1: Type paiement | I1: Mois Année | J1: Total | K1: =SUM(D:D) -> 5117.4 | L1: ="CA Annuel brut "&K1&"€" -> CA Annuel brut 5117,4€
A2: F2024017 | B2: C002 | C2: 2024-07-17 | D2: 50 | E2: A Régler | I2: =MONTH(tab_suivi[[#This Row],[Date facture]])&" "&YEAR(tab_suivi[[#This Row],[Date facture]]) -> 7 2024 | J2: Clients | K2: =COUNTA(Clients!A:A)-1 -> 10 | L2: ="Clients : "&K2 -> Clients : 10
A3: F2024018 | B3: C004 | C3: 2024-07-22 | D3: 110 | E3: A Régler | I3: =MONTH(tab_suivi[[#This Row],[Date facture]])&" "&YEAR(tab_suivi[[#This Row],[Date facture]]) -> 7 2024 | J3: Min date | K3: =MIN(tab_suivi[Date facture]) -> 2024-07-17
A4: F2024020 | B4: C009 | C4: 2024-08-01 | D4: 110 | E4: Payée | F4: 2024-08-22 | G4: 110 | H4: Virement | I4: =MONTH(tab_suivi[[#This Row],[Date facture]])&" "&YEAR(tab_suivi[[#This Row],[Date facture]]) -> 8 2024 | J4: Max date | K4: =MAX(C:C) -> 2025-03-20
A5: F2024021 | B5: C009 | C5: 2024-08-07 | D5: 110 | E5: Payée | I5: =MONTH(tab_suivi[[#This Row],[Date facture]])&" "&YEAR(tab_suivi[[#This Row],[Date facture]]) -> 8 2024 | J5: Nombre mois | K5: =DATEDIF(K3,K4,"m") -> 8
A6: F2024023 | B6: C002 | C6: 2024-08-17 | D6: 238 | E6: A Régler | I6: =MONTH(tab_suivi[[#This Row],[Date facture]])&" "&YEAR(tab_suivi[[#This Row],[Date facture]]) -> 8 2024 | J6: CA moyen mensuel | K6: =ROUND(K1/K5,0) -> 640 | L6: ="CA Mensuel Moyen: "&K6&"€" -> CA Mensuel Moyen: 640€
A7: F2024024 | B7: C005 | C7: 2024-08-20 | D7: 75 | E7: Payée | F7: 2024-08-30 | G7: 75 | H7: Chèque | I7: =MONTH(tab_suivi[[#This Row],[Date facture]])&" "&YEAR(tab_suivi[[#This Row],[Date facture]]) -> 8 2024
A8: F2024025 | B8: C007 | C8: 2024-09-05 | D8: 120 | E8: Payée | F8: 2024-09-10 | G8: 120 | H8: Virement | I8: =MONTH(tab_suivi[[#This Row],[Date facture]])&" "&YEAR(tab_suivi[[#This Row],[Date facture]]) -> 9 2024
A9: F2024026 | B9: C003 | C9: 2024-09-15 | D9: 95 | E9: A Régler | I9: =MONTH(tab_suivi[[#This Row],[Date facture]])&" "&YEAR(tab_suivi[[#This Row],[Date facture]]) -> 9 2024
A10: F2024027 | B10: C010 | C10: 2024-10-01 | D10: 135 | E10: Payée | F10: 2024-10-15 | G10: 135 | H10: Virement | I10: =MONTH(tab_suivi[[#This Row],[Date facture]])&" "&YEAR(tab_suivi[[#This Row],[Date facture]]) -> 10 2024
A11: F2024028 | B11: C006 | C11: 2024-10-20 | D11: 85 | E11: A Régler | I11: =MONTH(tab_suivi[[#This Row],[Date facture]])&" "&YEAR(tab_suivi[[#This Row],[Date facture]]) -> 10 2024
A12: F2024029 | B12: C008 | C12: 2024-11-15 | D12: 110 | E12: A Régler | I12: =MONTH(tab_suivi[[#This Row],[Date facture]])&" "&YEAR(tab_suivi[[#This Row],[Date facture]]) -> 11 2024
A13: F2024030 | B13: C001 | C13: 2024-12-01 | D13: 100 | E13: Payée | F13: 2024-12-10 | G13: 100 | H13: Chèque | I13: =MONTH(tab_suivi[[#This Row],[Date facture]])&" "&YEAR(tab_suivi[[#This Row],[Date facture]]) -> 12 2024
A14: F2024031 | B14: C003 | C14: 2024-12-10 | D14: 200 | E14: A Régler | I14: =MONTH(tab_suivi[[#This Row],[Date facture]])&" "&YEAR(tab_suivi[[#This Row],[Date facture]]) -> 12 2024
A15: F2024032 | B15: C004 | C15: 2024-12-15 | D15: 220 | E15: Payée | F15: 2024-12-20 | G15: 220 | H15: Virement | I15: =MONTH(tab_suivi[[#This Row],[Date facture]])&" "&YEAR(tab_suivi[[#This Row],[Date facture]]) -> 12 2024
A16: F2024033 | B16: C007 | C16: 2025-01-01 | D16: 240 | E16: A Régler | I16: =MONTH(tab_suivi[[#This Row],[Date facture]])&" "&YEAR(tab_suivi[[#This Row],[Date facture]]) -> 1 2025
A17: F2024034 | B17: C009 | C17: 2025-01-10 | D17: 300 | E17: Payée | F17: 2025-01-20 | G17: 300 | H17: Virement | I17: =MONTH(tab_suivi[[#This Row],[Date facture]])&" "&YEAR(tab_suivi[[#This Row],[Date facture]]) -> 1 2025
A18: F2024035 | B18: C002 | C18: 2025-01-20 | D18: 250 | E18: Payée | F18: 2025-01-30 | G18: 250 | H18: Chèque | I18: =MONTH(tab_suivi[[#This Row],[Date facture]])&" "&YEAR(tab_suivi[[#This Row],[Date facture]]) -> 1 2025
A19: F2024036 | B19: C005 | C19: 2025-02-01 | D19: 210 | E19: A Régler | I19: =MONTH(tab_suivi[[#This Row],[Date facture]])&" "&YEAR(tab_suivi[[#This Row],[Date facture]]) -> 2 2025
A20: F2024037 | B20: C006 | C20: 2025-02-15 | D20: 280 | E20: Payée | F20: 2025-02-25 | G20: 280 | H20: Virement | I20: =MONTH(tab_suivi[[#This Row],[Date facture]])&" "&YEAR(tab_suivi[[#This Row],[Date facture]]) -> 2 2025
A21: F2024038 | B21: C010 | C21: 2025-03-01 | D21: 260 | E21: A Régler | I21: =MONTH(tab_suivi[[#This Row],[Date facture]])&" "&YEAR(tab_suivi[[#This Row],[Date facture]]) -> 3 2025
A22: F2024039 | B22: C008 | C22: 2025-03-10 | D22: 290 | E22: Payée | F22: 2025-03-20 | G22: 290 | H22: Chèque | I22: =MONTH(tab_suivi[[#This Row],[Date facture]])&" "&YEAR(tab_suivi[[#This Row],[Date facture]]) -> 3 2025
A23: F2024040 | B23: C001 | C23: 2025-03-20 | D23: 320 | E23: Payée | F23: 2025-03-30 | G23: 320 | H23: Virement | I23: =MONTH(tab_suivi[[#This Row],[Date facture]])&" "&YEAR(tab_suivi[[#This Row],[Date facture]]) -> 3 2025
A24: F2024041 | B24: C007 | C24: 2024-08-17 | D24: 238 | E24: A Régler | I24: =MONTH(tab_suivi[[#This Row],[Date facture]])&" "&YEAR(tab_suivi[[#This Row],[Date facture]]) -> 8 2024
A25: F2024042 | B25: C010 | C25: 2024-08-17 | D25: 36.4 | E25: A Régler | I25: =MONTH(tab_suivi[[#This Row],[Date facture]])&" "&YEAR(tab_suivi[[#This Row],[Date facture]]) -> 8 2024
A26: F2024043 | B26: C009 | C26: 2024-08-17 | D26: 316.8 | E26: A Régler | I26: =MONTH(tab_suivi[[#This Row],[Date facture]])&" "&YEAR(tab_suivi[[#This Row],[Date facture]]) -> 8 2024
A27: F2024044 | B27: C009 | C27: 2024-08-12 | D27: 316.8 | E27: Payée | I27: =MONTH(tab_suivi[[#This Row],[Date facture]])&" "&YEAR(tab_suivi[[#This Row],[Date facture]]) -> 8 2024
A28: F2024045 | B28: C003 | C28: 2024-08-17 | D28: 2 | E28: A Régler | I28: =MONTH(tab_suivi[[#This Row],[Date facture]])&" "&YEAR(tab_suivi[[#This Row],[Date facture]]) -> 8 2024
A29: F2024046 | B29: C003 | C29: 2024-08-17 | D29: 42 | E29: Payée | I29: =MONTH(tab_suivi[[#This Row],[Date facture]])&" "&YEAR(tab_suivi[[#This Row],[Date facture]]) -> 8 2024
A30: F2024047 | B30: C003 | C30: 2024-08-19 | D30: 42 | E30: A Régler | I30: =MONTH(tab_suivi[[#This Row],[Date facture]])&" "&YEAR(tab_suivi[[#This Row],[Date facture]]) -> 8 2024
A31: F2024048 | B31: C006 | C31: 2024-08-17 | D31: 2 | E31: A Régler | I31: =MONTH(tab_suivi[[#This Row],[Date facture]])&" "&YEAR(tab_suivi[[#This Row],[Date facture]]) -> 8 2024
A32: F2024049 | B32: C006 | C32: 2024-08-17 | D32: 1 | E32: A Régler | I32: =MONTH(tab_suivi[[#This Row],[Date facture]])&" "&YEAR(tab_suivi[[#This Row],[Date facture]]) -> 8 2024
A33: F2024050 | B33: C001 | C33: 2024-08-17 | D33: 112.8 | E33: A Régler | I33: =MONTH(tab_suivi[[#This Row],[Date facture]])&" "&YEAR(tab_suivi[[#This Row],[Date facture]]) -> 8 2024
A34: F2024051 | B34: C001 | C34: 2024-08-21 | D34: 38.4 | E34: Payée | I34: =MONTH(tab_suivi[[#This Row],[Date facture]])&" "&YEAR(tab_suivi[[#This Row],[Date facture]]) -> 8 2024
A35: F2024052 | B35: C005 | C35: 2024-08-21 | D35: 20.4 | E35: Payée | F35: 2024-08-28 | G35: 20.4 | H35: Virement | I35: =MONTH(tab_suivi[[#This Row],[Date facture]])&" "&YEAR(tab_suivi[[#This Row],[Date facture]]) -> 8 2024
A36: F2024002 | B36: C007 | C36: 2024-08-21 | D36: 20.4 | E36: A Régler | I36: =MONTH(tab_suivi[[#This Row],[Date facture]])&" "&YEAR(tab_suivi[[#This Row],[Date facture]]) -> 8 2024
A37: F2024003 | B37: C007 | C37: 2024-08-21 | D37: 20.4 | E37: A Régler | I37: =MONTH(tab_suivi[[#This Row],[Date facture]])&" "&YEAR(tab_suivi[[#This Row],[Date facture]]) -> 8 2024

Sheet Histo
A1: ID Fature | B1: ID Client | C1: Date facture | D1: Montant TTC | E1: Condition de paiement | F1: Fichier PDF
A2: F2024012 | B2: C004 | C2: 2024-08-17 | D2: 21762.8 | E2: paiement à 30 jours
A3: F2024013 | B3: C009 | C3: 2024-08-17 | D3: 21762.8 | E3: paiement à 30 jours
A4: F2024014 | B4: C009 | C4: 2024-08-17 | D4: 110 | E4: paiement à 30 jours
A5: F2024021 | B5: C009 | C5: 2024-08-17 | D5: 128 | E5: paiement à 30 jours
A6: F2024022 | B6: C002 | C6: 2024-08-17 | D6: 238 | E6: paiement à 30 jours
A7: F2024023 | B7: C002 | C7: 2024-08-17 | D7: 238 | E7: Paiement à 30 jours
A8: F2024024 | B8: C005 | C8: 2024-08-20 | D8: 150 | E8: Paiement à 30 jours
A9: F2024025 | B9: C007 | C9: 2024-09-05 | D9: 240 | E9: Paiement à 30 jours
A10: F2024026 | B10: C003 | C10: 2024-09-15 | D10: 190 | E10: Paiement à 30 jours
A11: F2024027 | B11: C010 | C11: 2024-10-01 | D11: 270 | E11: Paiement à 30 jours
A12: F2024028 | B12: C006 | C12: 2024-10-20 | D12: 170 | E12: Paiement à 30 jours
A13: F2024029 | B13: C008 | C13: 2024-11-15 | D13: 220 | E13: Paiement à 30 jours
A14: F2024030 | B14: C001 | C14: 2024-12-01 | D14: 200 | E14: Paiement à 30 jours
A15: F2024031 | B15: C003 | C15: 2024-12-10 | D15: 200 | E15: Paiement à 30 jours
A16: F2024032 | B16: C004 | C16: 2024-12-15 | D16: 220 | E16: Paiement à 30 jours
A17: F2024033 | B17: C007 | C17: 2025-01-01 | D17: 280 | E17: Paiement à 30 jours
A18: F2024034 | B18: C009 | C18: 2025-01-10 | D18: 320 | E18: Paiement à 30 jours
A19: F2024035 | B19: C002 | C19: 2025-01-20 | D19: 270 | E19: Paiement à 30 jours
A20: F2024036 | B20: C005 | C20: 2025-02-01 | D20: 210 | E20: Paiement à 30 jours
A21: F2024037 | B21: C006 | C21: 2025-02-15 | D21: 280 | E21: Paiement à 30 jours
A22: F2024038 | B22: C010 | C22: 2025-03-01 | D22: 260 | E22: Paiement à 30 jours
A23: F2024039 | B23: C008 | C23: 2025-03-10 | D23: 290 | E23: Paiement à 30 jours
A24: F2024040 | B24: C001 | C24: 2025-03-20 | D24: 320 | E24: Paiement à 30 jours
A25: F2024040 | B25: C007 | C25: 2024-08-17 | D25: 238 | E25: paiement à 30 jours
A26: F2024041 | B26: C010 | C26: 2024-08-17 | D26: 36.4 | E26: paiement à 30 jours
A27: F2024042 | B27: C009 | C27: 2024-08-17 | D27: 316.8 | E27: paiement à 30 jours
A28: F2024043 | B28: C009 | C28: 2024-08-17 | D28: 316.8 | E28: paiement à 30 jours
A29: F2024044 | B29: C003 | C29: 2024-08-17 | D29: 42 | E29: paiement à 30 jours
A30: F2024045 | B30: C003 | C30: 2024-08-17 | D30: 42 | E30: paiement à 30 jours
A31: F2024046 | B31: C003 | C31: 2024-08-17 | D31: 42 | E31: paiement à 30 jours
A32: F2024047 | B32: C006 | C32: 2024-08-17 | D32: 147.6 | E32: paiement à 30 jours
A33: F2024048 | B33: C006 | C33: 2024-08-17 | D33: 147.6 | E33: paiement à 30 jours
A34: F2024049 | B34: C001 | C34: 2024-08-17 | D34: 112.8 | E34: paiement à 30 jours | F34: \F2024049_Facture_20240818.pdf
A35: F2024050 | B35: C001 | C35: 2024-08-21 | D35: 38.4 | E35: paiement à 30 jours | F35: \F2024050_Facture_20240818.pdf
A36: F2024051 | B36: C005 | C36: 2024-08-21 | D36: 20.4 | E36: paiement à 30 jours | F36: \F2024051_Facture_20240818.pdf
A37: F2024001 | B37: C007 | C37: 2024-08-21 | D37: 20.4 | E37: paiement à 30 jours | F37: \F2024001_Facture_20240818.pdf
A38: F2024002 | B38: C007 | C38: 2024-08-21 | D38: 20.4 | E38: paiement à 30 jours | F38: \F2024002_Facture_20240822.pdf

Sheet Catalogue
A1: Référence | B1: Produit | C1: Prix HT (EUR) | D1: Taux de TVA | E1: Prix TTC (EUR)
A2: TOU001 | B2: Miniature de la Place du Capitole | C2: 10 | D2: 0.2 | E2: 12
A3: TOU002 | B3: Tasse souvenir "Toulouse" | C3: 8 | D3: 0.2 | E3: 9.6
A4: TOU003 | B4: Magnet réfrigérateur "Vieux Toulouse" | C4: 5 | D4: 0.2 | E4: 6
A5: TOU004 | B5: Porte-clés "Basilique Saint-Sernin" | C5: 6 | D5: 0.2 | E5: 7.2
A6: TOU005 | B6: Cartes postales anciennes de Toulouse | C6: 4 | D6: 0.2 | E6: 4.8
A7: TOU006 | B7: Casquette brodée "Toulouse" | C7: 12 | D7: 0.2 | E7: 14.4
A8: TOU007 | B8: Écharpe en laine avec motifs de Toulouse | C8: 20 | D8: 0.2 | E8: 24
A9: TOU008 | B9: Assiette décorative "Toulouse" | C9: 15 | D9: 0.2 | E9: 18
A10: TOU009 | B10: Bougie parfumée "Toulouse" | C10: 11 | D10: 0.2 | E10: 13.2
A11: TOU010 | B11: Poster illustré "Canal du Midi" | C11: 9 | D11: 0.2 | E11: 10.8
A12: TOU011 | B12: Livre sur l'histoire de Toulouse | C12: 18 | D12: 0.2 | E12: 21.6
A13: TOU012 | B13: Bracelet en cuir "Toulouse" | C13: 14 | D13: 0.2 | E13: 16.8
A14: TOU013 | B14: Verre à bière gravé "Toulouse" | C14: 13 | D14: 0.2 | E14: 15.6
A15: TOU014 | B15: Tablier de cuisine avec logo "Toulouse" | C15: 17 | D15: 0.2 | E15: 20.4
A16: TOU015 | B16: Sac en toile "Toulouse" | C16: 22 | D16: 0.2 | E16: 26.4
A17: TOU016 | B17: Magnet "Pont Neuf" | C17: 7 | D17: 0.2 | E17: 8.4
A18: TOU017 | B18: Réplica en résine de la Tour des Archives | C18: 25 | D18: 0.2 | E18: 30
A19: TOU018 | B19: Boucles d'oreilles en forme de violette | C19: 12 | D19: 0.2 | E19: 14.4
A20: TOU019 | B20: Couteau de poche "Toulouse" | C20: 18 | D20: 0.2 | E20: 21.6
A21: TOU020 | B21: Coque de téléphone "Toulouse" | C21: 16 | D21: 0.2 | E21: 19.2
A22: TOU021 | B22: Panneau en bois "Bienvenue à Toulouse" | C22: 20 | D22: 0.2 | E22: 24
A23: TOU022 | B23: Mappemonde vintage "Toulouse" | C23: 30 | D23: 0.2 | E23: 36
A24: TOU023 | B24: T-shirt imprimé "Toulouse" | C24: 15 | D24: 0.2 | E24: 18
A25: TOU024 | B25: Dessous de verre "Vieux Toulouse" | C25: 9 | D25: 0.2 | E25: 10.8
A26: TOU025 | B26: Porte-cartes en cuir "Toulouse" | C26: 14 | D26: 0.2 | E26: 16.8
A27: TOU026 | B27: Chapeau de paille "Toulouse" | C27: 22 | D27: 0.2 | E27: 26.4
A28: TOU027 | B28: Luminaires décoratifs "Toulouse" | C28: 35 | D28: 0.2 | E28: 42
A29: TOU028 | B29: Cendrier en verre "Toulouse" | C29: 11 | D29: 0.2 | E29: 13.2
A30: TOU029 | B30: Parapluie avec motifs de Toulouse | C30: 18 | D30: 0.2 | E30: 21.6
A31: TOU030 | B31: Set de cartes "Toulouse" | C31: 8 | D31: 0.2 | E31: 9.6

Sheet Clients
A1: ID Client | B1: Nom du client | C1: Téléphone | D1: Email | E1: Adresse | F1: Code Postal | G1: Ville | H1: Condition de paiement
A2: C001 | B2: Dupont SARL | C2: 1 | D2: contact@dupontsarl.fr | E2: 12 Rue de la République | F2: 75001 | G2: Paris | H2: 30 jours fin de mois
A3: C002 | B3: Martin & Fils | C3: 6 | D3: info@martinfils.fr | E3: 18 Avenue Victor Hugo | F3: 29200 | G3: Brest | H3: 45 jours nets
A4: C003 | B4: Lefèvre Industries | D4: admin@lefevreindus.fr | E4: 5 Rue des Entrepreneurs | F4: 13008 | G4: Marseille | H4: 30 jours nets
A5: C004 | B5: Société Giraud | D5: giraud.contact@socgiraud.fr | E5: 22 Boulevard Saint-Michel | F5: 75005 | G5: Paris | H5: 60 jours fin de mois
A6: C005 | B6: Pelletier et Associés | D6: contact@pelletierassocies.fr | E6: 3 Rue du Commerce | F6: 59000 | G6: Lille | H6: 30 jours fin de mois
A7: C006 | B7: Rousseau Constructions | D7: rousseau@constrouseau.fr | E7: 25 Quai de la Garonne | F7: 33000 | G7: Bordeaux | H7: 45 jours nets
A8: C007 | B8: Dubois Informatique | D8: support@duboisinfo.fr | E8: 9 Rue de la Technologie | F8: 37000 | G8: Tours | H8: 30 jours nets
A9: C008 | B9: Morin Transport | D9: logistique@morintrans.fr | E9: 7 Allée des Chênes | F9: 38000 | G9: Grenoble | H9: 60 jours fin de mois
A10: C009 | B10: Bernard et Cie | D10: accueil@bernardcie.fr | E10: 14 Rue des Capucines | F10: 78000 | G10: Versailles | H10: 30 jours fin de mois
A11: C010 | B11: Petit Distribution | D11: service@petitdist.fr | E11: 30 Route de Strasbourg | F11: 67000 | G11: Strasbourg | H11: 45 jours nets

Sheet Preparation
A1: Clients | B1: Nom | C1: Montant | E1: Clients | F1: Nom client | G1: Montant TTC
A2: =_xlfn.UNIQUE(tab_suivi[ID Client]) -> C002 | B2: =_xlfn.XLOOKUP(_xlfn.ANCHORARRAY(A2),tab_clients[ID Client],tab_clients[Nom du client]) -> Martin & Fils | C2: =SUMIFS(tab_suivi[Montant TTC],tab_suivi[ID Client],Preparation!A2) -> 538 | E2: =_xlfn._xlws.SORT(A2:C11,3,-1) -> C009 | F2: Bernard et Cie | G2: 1153.6
A3: C004 | B3: Société Giraud | C3: =SUMIFS(tab_suivi[Montant TTC],tab_suivi[ID Client],Preparation!A3) -> 330 | E3: C007 | F3: Dubois Informatique | G3: 638.8
A4: C009 | B4: Bernard et Cie | C4: =SUMIFS(tab_suivi[Montant TTC],tab_suivi[ID Client],Preparation!A4) -> 1153.6 | E4: C001 | F4: Dupont SARL | G4: 571.2
A5: C005 | B5: Pelletier et Associés | C5: =SUMIFS(tab_suivi[Montant TTC],tab_suivi[ID Client],Preparation!A5) -> 305.4 | E5: C002 | F5: Martin & Fils | G5: 538
A6: C007 | B6: Dubois Informatique | C6: =SUMIFS(tab_suivi[Montant TTC],tab_suivi[ID Client],Preparation!A6) -> 638.8 | E6: C010 | F6: Petit Distribution | G6: 431.4
A7: C003 | B7: Lefèvre Industries | C7: =SUMIFS(tab_suivi[Montant TTC],tab_suivi[ID Client],Preparation!A7) -> 381 | E7: C008 | F7: Morin Transport | G7: 400
A8: C010 | B8: Petit Distribution | C8: =SUMIFS(tab_suivi[Montant TTC],tab_suivi[ID Client],Preparation!A8) -> 431.4 | E8: C003 | F8: Lefèvre Industries | G8: 381
A9: C006 | B9: Rousseau Constructions | C9: =SUMIFS(tab_suivi[Montant TTC],tab_suivi[ID Client],Preparation!A9) -> 368 | E9: C006 | F9: Rousseau Constructions | G9: 368
A10: C008 | B10: Morin Transport | C10: =SUMIFS(tab_suivi[Montant TTC],tab_suivi[ID Client],Preparation!A10) -> 400 | E10: C004 | F10: Société Giraud | G10: 330
A11: C001 | B11: Dupont SARL | C11: =SUMIFS(tab_suivi[Montant TTC],tab_suivi[ID Client],Preparation!A11) -> 571.2 | E11: C005 | F11: Pelletier et Associés | G11: 305.4

Sheet Param
A1: Numéro de facture intial | B1: F | C1: =YEAR(TODAY()) -> 2024 | D1: 001 | E1: =B1&C1&D1 -> F2024001
A2: Numéro de facture en cours | E2: F2024003
A3: Chemin archivage PDF facture | B3: /Users/carolinemontet/Documents/Les tutos de David/Production vidéo/facture/Factures_PDF/

Sheet A propos
D2: DMO Formation
D5: Youtube | E5: Chaine Tutos Excel
D6: Facebook | E6: Facebook
D7: Linkedin | E7: Voir le profil
D8: Instagram | E8: Voir le compte
D9: Télégram | E9: Voir le canal
D10: Site | E10: Visiter
B13: Ce fichier est une démonstration avec des données fictives
B15: Pour visualiser le code source de la macro, activer l'onglet Développeur / Visual Basic
B17: Adaptez le code source selon votre besoin
B19: Vidéo dé démonstration | D19: https://youtu.be/xAPSJ84DDE0
B21: Vidéo d'explication (cachée) | D21: https://youtu.be/J81KBFL7jZY
